fUSD/lending_fUSD_20250111
["ID","MTS","AMOUNT","RATE_DAILY","PERIOD"]
[348567377,1736622633523,-500.0,0.00010437,2]
[348567379,1736622633532,-500.0,0.00010437,2]
[348567381,1736622633542,-500.0,0.00010437,2]
[348567383,1736622633551,-500.0,0.00010437,2]
[348567385,1736622633562,-500.0,0.00010437,2]
[348567387,1736622633572,-500.0,0.00010437,2]
[348567390,1736622633582,-500.0,0.00010437,2]
[348567392,1736622633592,-500.0,0.00010437,2]
[348567394,1736622633602,-500.0,0.00010437,2]
[348567396,1736622633611,-500.0,0.00010437,2]
[348567398,1736622633621,-500.0,0.00010437,2]
[348567400,1736622633630,-500.0,0.00010437,2]
[348567401,1736622633639,-500.0,0.00010437,2]
[348567403,1736622633649,-500.0,0.00010437,2]
[348567405,1736622633658,-500.0,0.00010437,2]
[348567407,1736622633668,-500.0,0.00010437,2]
[348567409,1736622633678,-500.0,0.00010437,2]
[348567411,1736622633687,-500.0,0.00010437,2]
[348567413,1736622633696,-500.0,0.00010437,2]
[348567415,1736622633706,-500.0,0.00010437,2]
[348567417,1736622633715,-500.0,0.00010437,2]
[348567419,1736622633724,-500.0,0.00010437,2]
[348567421,1736622633734,-500.0,0.00010437,2]
[348567423,1736622633744,-500.0,0.00010437,2]
[348567425,1736622633753,-500.0,0.00010437,2]
[348567427,1736622633763,-500.0,0.00010437,2]
[348567429,1736622633772,-500.0,0.00010437,2]
[348567431,1736622633782,-500.0,0.00010437,2]
[348567433,1736622633792,-500.0,0.00010437,2]
[348567435,1736622633802,-500.0,0.00010437,2]
[348567437,1736622633812,-500.0,0.00010437,2]
[348567439,1736622633821,-500.0,0.00010437,2]
[348567441,1736622633830,-500.0,0.00010437,2]
[348567443,1736622633840,-500.0,0.00010437,2]
[348567445,1736622633849,-500.0,0.00010437,2]
[348567447,1736622633858,-500.0,0.00010437,2]
[348567449,1736622633868,-220.29567741,0.00010437,2]
[348567451,1736622633877,-201.78353211,0.00010437,2]
[348567453,1736622633886,-500.0,0.00010437,2]
[348567455,1736622633896,-500.0,0.00010437,2]
[348567457,1736622633905,-500.0,0.00010437,2]
[348567459,1736622633915,-500.0,0.00010437,2]
[348567461,1736622633924,-500.0,0.00010437,2]
[348567463,1736622633933,-500.0,0.00010437,2]
[348567465,1736622633942,-500.0,0.00010437,2]
[348567467,1736622633952,-500.0,0.00010437,2]
[348567469,1736622633961,-500.0,0.00010437,2]
[348567471,1736622633970,-500.0,0.00010437,2]
[348567473,1736622633980,-500.0,0.00010437,2]
[348567475,1736622633989,-500.0,0.00010437,2]
[348567477,1736622633999,-500.0,0.00010437,2]
[348567479,1736622634008,-500.0,0.00010437,2]
[348567481,1736622634018,-500.0,0.00010437,2]
[348567483,1736622634027,-500.0,0.00010437,2]
[348567485,1736622634036,-500.0,0.00010437,2]
[348567487,1736622634046,-500.0,0.00010437,2]
[348567489,1736622634056,-500.0,0.00010437,2]
[348567491,1736622634065,-500.0,0.00010437,2]
[348567493,1736622634080,-500.0,0.00010437,2]
[348567495,1736622634090,-500.0,0.00010437,2]
[348567497,1736622634099,-500.0,0.00010437,2]
[348567499,1736622634109,-500.0,0.00010437,2]
[348567501,1736622634119,-500.0,0.00010437,2]
[348567503,1736622634128,-500.0,0.00010437,2]
[348567505,1736622634138,-500.0,0.00010437,2]
[348567507,1736622634147,-500.0,0.00010437,2]
[348567509,1736622634158,-500.0,0.00010437,2]
[348567511,1736622634167,-500.0,0.00010437,2]
[348567513,1736622634177,-500.0,0.00010437,2]
[348567515,1736622634186,-500.0,0.00010437,2]
[348567517,1736622634196,-500.0,0.00010437,2]
[348567519,1736622634206,-500.0,0.00010437,2]
[348567521,1736622634216,-500.0,0.00010437,2]
[348567523,1736622634226,-500.0,0.00010437,2]
[348567525,1736622634235,-500.0,0.00010437,2]
[348567527,1736622634245,-500.0,0.00010437,2]
[348567529,1736622634255,-500.0,0.00010437,2]
[348567531,1736622634264,-506.273913,0.00010437,2]
[348567533,1736622634274,-500.0,0.00010437,2]
[348567535,1736622634284,-500.0,0.00010437,2]
[348567537,1736622634293,-500.0,0.00010437,2]
[348567539,1736622634303,-500.0,0.00010437,2]
[348567541,1736622634315,-500.0,0.00010437,2]
[348567543,1736622634327,-500.0,0.00010437,2]
[348567545,1736622634337,-500.0,0.00010437,2]
[348567547,1736622634346,-500.0,0.00010437,2]
[348567549,1736622634356,-500.0,0.00010437,2]
[348567551,1736622634366,-500.0,0.00010437,2]
[348567553,1736622634376,-500.0,0.00010437,2]
[348567555,1736622634386,-500.0,0.00010437,2]
[348567557,1736622634395,-500.0,0.00010437,2]
[348567559,1736622634404,-500.0,0.00010437,2]
[348567561,1736622634415,-500.0,0.00010437,2]
[348567563,1736622634425,-500.0,0.00010437,2]
[348567565,1736622634434,-500.0,0.00010437,2]
[348567567,1736622634444,-500.0,0.00010437,2]
[348567569,1736622634454,-500.0,0.00010437,2]
[348567571,1736622634463,-500.0,0.00010437,2]
[348567573,1736622634473,-500.0,0.00010437,2]
[348567575,1736622634482,-500.0,0.00010437,2]
[348567576,1736622634491,-500.0,0.00010437,2]
[348567578,1736622634501,-500.0,0.00010437,2]
[348567580,1736622634511,-500.0,0.00010437,2]
[348567583,1736622634521,-500.0,0.00010437,2]
[348567584,1736622634531,-500.0,0.00010437,2]
[348567585,1736622634540,-500.0,0.00010437,2]
[348567586,1736622634550,-500.0,0.00010437,2]
[348567587,1736622634560,-500.0,0.00010437,2]
[348567588,1736622634570,-500.0,0.00010437,2]
[348567589,1736622634580,-500.0,0.00010437,2]
[348567590,1736622634589,-500.0,0.00010437,2]
[348567591,1736622634599,-500.0,0.00010437,2]
[348567592,1736622634608,-500.0,0.00010437,2]
[348567593,1736622634618,-502.92049932,0.00010437,2]
[348567594,1736622634627,-500.0,0.00010437,2]
[348567595,1736622634636,-500.0,0.00010437,2]
[348567597,1736622634646,-500.0,0.00010437,2]
[348567599,1736622634655,-500.0,0.00010437,2]
[348567600,1736622634664,-500.0,0.00010437,2]
[348567602,1736622634674,-500.0,0.00010437,2]
[348567604,1736622634684,-500.0,0.00010437,2]
[348567606,1736622634694,-500.0,0.00010437,2]
[348567608,1736622634703,-508.01167748,0.00010437,2]
[348567610,1736622634713,-500.0,0.00010437,2]
[348567612,1736622634723,-500.0,0.00010437,2]
[348567614,1736622634734,-500.0,0.00010437,2]
[348567616,1736622634743,-500.0,0.00010437,2]
[348567618,1736622634753,-500.0,0.00010437,2]
[348567620,1736622634762,-500.0,0.00010437,2]
[348567622,1736622634772,-500.0,0.00010437,2]
[348567624,1736622634782,-500.0,0.00010437,2]
[348567626,1736622634791,-500.0,0.00010437,2]
[348567628,1736622634800,-500.0,0.00010437,2]
[348567630,1736622634811,-500.0,0.00010437,2]
[348567632,1736622634820,-500.0,0.00010437,2]
[348567634,1736622634830,-746.9,0.00010437,2]
[348567636,1736622634839,-500.0,0.00010437,2]
[348567638,1736622634848,-500.0,0.00010437,2]
[348567640,1736622634858,-500.0,0.00010437,2]
[348567642,1736622634867,-500.0,0.00010437,2]
[348567644,1736622634877,-500.0,0.00010437,2]
[348567646,1736622634887,-500.0,0.00010437,2]
[348567648,1736622634897,-500.0,0.00010437,2]
[348567650,1736622634907,-500.0,0.00010437,2]
[348567652,1736622634916,-500.0,0.00010437,2]
[348567654,1736622634925,-500.0,0.00010437,2]
[348567656,1736622634935,-500.0,0.00010437,2]
[348567658,1736622634945,-500.0,0.00010437,2]
[348567660,1736622634954,-500.0,0.00010437,2]
[348567662,1736622634963,-500.0,0.00010437,2]
[348567664,1736622634972,-500.0,0.00010437,2]
[348567666,1736622634981,-500.0,0.00010437,2]
[348567668,1736622634991,-500.0,0.00010437,2]
[348567670,1736622635000,-500.0,0.00010437,2]
[348567672,1736622635010,-500.0,0.00010437,2]
[348567674,1736622635020,-500.0,0.00010437,2]
[348567676,1736622635029,-500.0,0.00010437,2]
[348567678,1736622635039,-500.0,0.00010437,2]
[348567680,1736622635048,-705.24,0.00010437,2]
[348567682,1736622635058,-500.0,0.00010437,2]
[348567684,1736622635068,-500.0,0.00010437,2]
[348567686,1736622635082,-500.0,0.00010437,2]
[348567688,1736622635091,-500.0,0.00010437,2]
[348567690,1736622635100,-500.0,0.00010437,2]
[348567692,1736622635110,-500.0,0.00010437,2]
[348567694,1736622635121,-500.0,0.00010437,2]
[348567696,1736622635131,-500.0,0.00010437,2]
[348567698,1736622635140,-500.0,0.00010437,2]
[348567700,1736622635149,-500.0,0.00010437,2]
[348567702,1736622635159,-500.0,0.00010437,2]
[348567704,1736622635168,-500.0,0.00010437,2]
[348567706,1736622635177,-500.0,0.00010437,2]
[348567708,1736622635186,-500.0,0.00010437,2]
[348567710,1736622635196,-500.0,0.00010437,2]
[348567711,1736622635206,-500.0,0.00010437,2]
[348567713,1736622635215,-500.0,0.00010437,2]
[348567715,1736622635224,-500.0,0.00010437,2]
[348567718,1736622635235,-500.0,0.00010437,2]
[348567720,1736622635244,-500.0,0.00010437,2]
[348567721,1736622635254,-500.0,0.00010437,2]
[348567724,1736622635263,-500.0,0.00010437,2]
[348567725,1736622635273,-437.69234994,0.00010437,2]
[348567727,1736622635283,-500.0,0.00010437,2]
[348567729,1736622635292,-500.0,0.00010437,2]
[348567731,1736622635301,-1154.18,0.00010437,2]
[348567752,1736622635495,-500.0,0.00010437,2]
[348567754,1736622635505,-500.0,0.00010437,2]
[348567756,1736622635514,-500.0,0.00010437,2]
[348567758,1736622635524,-500.0,0.00010437,2]
[348567760,1736622635534,-500.0,0.00010437,2]
[348567762,1736622635543,-500.0,0.00010437,2]
[348567764,1736622635553,-500.0,0.00010437,2]
[348567766,1736622635562,-500.0,0.00010437,2]
[348567768,1736622635571,-500.0,0.00010437,2]
[348567770,1736622635580,-500.0,0.00010437,2]
[348567772,1736622635590,-447.35,0.00010437,2]
[348567774,1736622635599,-500.0,0.00010437,2]
[348567776,1736622635608,-500.0,0.00010437,2]
[348567778,1736622635617,-500.0,0.00010437,2]
[348567780,1736622635627,-500.0,0.00010437,2]
[348567782,1736622635636,-500.0,0.00010437,2]
[348567784,1736622635645,-500.0,0.00010437,2]
[348567786,1736622635654,-500.0,0.00010437,2]
[348567788,1736622635664,-1140.5,0.00010437,2]
[348567790,1736622635673,-500.0,0.00010437,2]
[348567792,1736622635682,-500.0,0.00010437,2]
[348567794,1736622635691,-500.0,0.00010437,2]
[348567796,1736622635700,-500.0,0.00010437,2]
[348567798,1736622635709,-500.0,0.00010437,2]
[348567800,1736622635720,-500.0,0.00010437,2]
[348567802,1736622635731,-500.0,0.00010437,2]
[348567804,1736622635740,-500.0,0.00010437,2]
[348567806,1736622635750,-500.0,0.00010437,2]
[348567808,1736622635759,-500.0,0.00010437,2]
[348567810,1736622635768,-500.0,0.00010437,2]
[348567812,1736622635777,-470.27486098,0.00010437,2]
[348567814,1736622635786,-500.0,0.00010437,2]
[348567815,1736622635795,-500.0,0.00010437,2]
[348567817,1736622635804,-500.0,0.00010437,2]
[348567819,1736622635813,-500.0,0.00010437,2]
[348567821,1736622635822,-500.0,0.00010437,2]
[348567823,1736622635832,-500.0,0.00010437,2]
[348567825,1736622635841,-500.0,0.00010437,2]
[348567827,1736622635850,-554.94,0.00010437,2]
[348567829,1736622635859,-500.0,0.00010437,2]
[348567831,1736622635868,-520.39,0.00010437,2]
[348567833,1736622635878,-500.0,0.00010437,2]
[348567835,1736622635887,-500.0,0.00010437,2]
[348567837,1736622635896,-501.19696151,0.00010437,2]
[348567839,1736622635905,-500.0,0.00010437,2]
[348567841,1736622635915,-500.0,0.00010437,2]
[348567843,1736622635924,-500.0,0.00010437,2]
[348567846,1736622635934,-500.0,0.00010437,2]
[348567848,1736622635943,-500.0,0.00010437,2]
[348567850,1736622635953,-500.0,0.00010437,2]
[348567851,1736622635962,-500.0,0.00010437,2]
[348567853,1736622635971,-500.0,0.00010437,2]
[348567855,1736622635981,-500.0,0.00010437,2]
[348567857,1736622635990,-500.0,0.00010437,2]
[348567860,1736622635999,-500.0,0.00010437,2]
[348567862,1736622636014,-500.0,0.00010437,2]
[348567864,1736622636023,-500.0,0.00010437,2]
[348567866,1736622636033,-500.0,0.00010437,2]
[348567868,1736622636042,-500.0,0.00010437,2]
[348567870,1736622636051,-645.64671254,0.00010437,2]
[348567872,1736622636060,-500.0,0.00010437,2]
[348567874,1736622636070,-500.0,0.00010437,2]
[348567876,1736622636079,-500.0,0.00010437,2]
[348567878,1736622636093,-500.0,0.00010437,2]
[348567880,1736622636102,-500.0,0.00010437,2]
[348567882,1736622636112,-716.43,0.00010438,2]
[348567884,1736622636121,-1487.47,0.00010438,2]
[348567886,1736622636133,-777.38,0.00010438,2]
[348567888,1736622636142,-1081.65,0.00010438,2]
[348567890,1736622636152,-573.53,0.00010438,2]
[348567892,1736622636162,-729.07,0.00010438,2]
[348567894,1736622636172,-500.0,0.00010438,2]
[348567896,1736622636182,-1106.66,0.00010438,2]
[348567898,1736622636191,-520.05,0.00010438,2]
[348567900,1736622636200,-500.0,0.00010438,2]
[348567902,1736622636210,-517.47,0.00010438,2]
[348567904,1736622636219,-500.0,0.00010438,2]
[348567906,1736622636228,-500.0,0.00010438,2]
[348567908,1736622636237,-500.0,0.00010438,2]
[348567910,1736622636246,-853.47,0.00010438,2]
[348567912,1736622636256,-725.73,0.00010438,2]
[348567914,1736622636264,-1166.39,0.00010438,2]
[348567916,1736622636274,-668.75,0.00010438,2]
[348567918,1736622636285,-1027.5,0.00010438,2]
[348567920,1736622636294,-1352.05,0.00010438,2]
[348567922,1736622636303,-4865.22,0.00010438,2]
[348567924,1736622636313,-1073.95,0.00010438,2]
[348567926,1736622636322,-500.0,0.00010438,2]
[348567928,1736622636331,-500.0,0.00010438,2]
[348567930,1736622636340,-1195.73,0.00010438,2]
[348567932,1736622636349,-500.0,0.00010438,2]
[348567934,1736622636358,-526.2,0.00010438,2]
[348567936,1736622636367,-835.76,0.00010438,2]
[348567938,1736622636376,-560.55,0.00010439,2]
[348567939,1736622636385,-999.57,0.00010439,2]
[348567941,1736622636394,-1043.03,0.0001044,2]
[348567943,1736622636403,-770.4,0.0001044,2]
[348567945,1736622636412,-568.86,0.0001052,2]
[348567947,1736622636420,-283.4,0.00010583,2]
[348567949,1736622636430,-151.423521,0.00010709,2]
[348567952,1736622636441,-168.591233,0.00010709,2]
[348567954,1736622636450,-500.0,0.00010709,2]
[348567955,1736622636459,-1664.74,0.00010709,2]
[348567957,1736622636468,-500.0,0.00010709,2]
[348567959,1736622636477,-500.0,0.00010709,2]
[348567961,1736622636487,-567.88,0.00010709,2]
[348567963,1736622636496,-725.09,0.00010709,2]
[348567965,1736622636506,-975.48,0.00010709,2]
[348567967,1736622636515,-606.77,0.00010709,2]
[348567969,1736622636524,-1171.79,0.00010709,2]
[348567971,1736622636534,-500.0,0.0001071,2]
[348567973,1736622636543,-500.0,0.0001071,2]
[348567976,1736622636553,-500.0,0.0001071,2]
[348567977,1736622636562,-656.8,0.0001071,2]
[348567979,1736622636572,-328.13,0.0001071,2]
[348567981,1736622636581,-500.0,0.0001071,2]
[348567983,1736622636590,-500.0,0.0001071,2]
[348567985,1736622636599,-500.0,0.0001071,2]
[348567987,1736622636608,-500.0,0.0001071,2]
[348567989,1736622636617,-568.27,0.0001071,2]
[348567991,1736622636627,-500.0,0.0001071,2]
[348567993,1736622636636,-1763.45,0.0001071,2]
[348567995,1736622636645,-708.92,0.0001071,2]
[348567996,1736622636655,-1148.6,0.0001071,2]
[348567997,1736622636664,-3217.96,0.0001071,2]
[348567999,1736622636673,-573.26,0.0001071,2]
[348568001,1736622636682,-500.0,0.0001071,2]
[348568003,1736622636691,-632.97,0.0001071,2]
[348568004,1736622636700,-500.0,0.0001071,2]
[348568005,1736622636710,-1576.94,0.0001071,2]
[348568006,1736622636719,-500.0,0.0001071,2]
[348568007,1736622636728,-500.0,0.0001071,2]
[348568008,1736622636738,-1726.37,0.0001071,2]
[348568009,1736622636747,-587.7,0.0001071,2]
[348568010,1736622636756,-1288.78,0.0001071,2]
[348568011,1736622636766,-923.13,0.0001071,2]
[348568013,1736622636775,-599.51,0.0001071,2]
[348568014,1736622636784,-2114.13,0.0001071,2]
[348568015,1736622636794,-864.56,0.0001071,2]
[348568016,1736622636804,-1229.55,0.0001071,2]
[348568017,1736622636813,-699.21,0.0001071,2]
[348568018,1736622636823,-500.0,0.0001071,2]
[348568019,1736622636833,-1521.94,0.0001071,2]
[348568020,1736622636842,-1300.42,0.0001071,2]
[348568021,1736622636851,-578.02,0.0001071,2]
[348568022,1736622636861,-565.77,0.0001071,2]
[348568023,1736622636870,-565.77,0.0001071,2]
[348568024,1736622636879,-500.0,0.0001071,2]
[348568025,1736622636888,-733.68,0.0001071,2]
[348568026,1736622636898,-500.0,0.0001071,2]
[348568027,1736622636907,-500.0,0.0001071,2]
[348568028,1736622636916,-500.0,0.0001071,2]
[348568029,1736622636925,-500.0,0.0001071,2]
[348568030,1736622636935,-888.33,0.0001071,2]
[348568031,1736622636944,-500.0,0.0001071,2]
[348568032,1736622636953,-688.5,0.0001071,2]
[348568033,1736622636962,-1370.57,0.0001071,2]
[348568034,1736622636972,-638.55,0.0001071,2]
[348568035,1736622636981,-1565.18,0.0001071,2]
[348568036,1736622636990,-500.0,0.0001071,2]
[348568037,1736622637000,-500.0,0.0001071,2]
[348568038,1736622637009,-500.0,0.00010711,2]
[348568039,1736622637018,-500.0,0.00010711,2]
[348568040,1736622637028,-500.0,0.00010711,2]
[348568041,1736622637037,-500.0,0.00010711,2]
[348568042,1736622637046,-500.0,0.00010711,2]
[348568043,1736622637056,-500.0,0.00010711,2]
[348568044,1736622637065,-500.0,0.00010711,2]
[348568045,1736622637074,-500.0,0.00010711,2]
[348568046,1736622637088,-500.0,0.00010711,2]
[348568047,1736622637097,-500.0,0.00010711,2]
[348568048,1736622637107,-500.0,0.00010711,2]
[348568049,1736622637116,-500.0,0.00010711,2]
[348568050,1736622637127,-500.0,0.00010711,2]
[348568051,1736622637136,-500.0,0.00010711,2]
[348568052,1736622637146,-500.0,0.00010711,2]
[348568053,1736622637157,-500.0,0.00010711,2]
[348568054,1736622637166,-500.0,0.00010711,2]
[348568055,1736622637175,-500.0,0.00010711,2]
[348568056,1736622637184,-500.0,0.00010711,2]
[348568057,1736622637194,-500.0,0.00010711,2]
[348568058,1736622637203,-500.0,0.00010711,2]
[348568059,1736622637212,-445.29,0.00010711,2]
[348568060,1736622637222,-500.0,0.00010711,2]
[348568061,1736622637231,-500.0,0.00010711,2]
[348568062,1736622637240,-500.0,0.00010711,2]
[348568063,1736622637250,-500.0,0.00010711,2]
[348568064,1736622637259,-500.0,0.00010711,2]
[348568065,1736622637268,-500.0,0.00010711,2]
[348568066,1736622637277,-500.0,0.00010711,2]
[348568067,1736622637287,-500.0,0.00010711,2]
[348568068,1736622637296,-746.9,0.00010711,2]
[348568070,1736622637305,-500.0,0.00010711,2]
[348568071,1736622637314,-500.0,0.00010711,2]
[348568072,1736622637323,-500.0,0.00010711,2]
[348568073,1736622637332,-500.0,0.00010711,2]
[348568074,1736622637341,-705.24,0.00010711,2]
[348568075,1736622637350,-282.29,0.00010711,2]
[348568076,1736622637359,-297.86,0.00010711,2]
[348568077,1736622637368,-1154.18,0.00010711,2]
[348568078,1736622637377,-500.0,0.00010711,2]
[348568079,1736622637386,-500.0,0.00010711,2]
[348568080,1736622637395,-500.0,0.00010711,2]
[348568081,1736622637404,-1140.5,0.00010711,2]
[348568082,1736622637414,-500.0,0.00010711,2]
[348568083,1736622637423,-500.0,0.00010711,2]
[348568084,1736622637432,-500.0,0.00010711,2]
[348568085,1736622637441,-500.0,0.00010711,2]
[348568086,1736622637450,-500.0,0.00010711,2]
[348568087,1736622637459,-500.0,0.00010711,2]
[348568088,1736622637468,-500.0,0.00010711,2]
[348568089,1736622637478,-500.0,0.00010711,2]
[348568090,1736622637487,-716.43,0.00010712,2]
[348568091,1736622637496,-1487.47,0.00010712,2]
[348568092,1736622637505,-777.38,0.00010712,2]
[348568093,1736622637514,-1081.65,0.00010712,2]
[348568094,1736622637523,-573.53,0.00010712,2]
[348568095,1736622637533,-729.07,0.00010712,2]
[348568096,1736622637542,-500.0,0.00010712,2]
[348568097,1736622637551,-1106.66,0.00010712,2]
[348568098,1736622637561,-520.05,0.00010712,2]
[348568099,1736622637571,-500.0,0.00010712,2]
[348568100,1736622637580,-517.47,0.00010712,2]
[348568101,1736622637589,-500.0,0.00010712,2]
[348568102,1736622637598,-500.0,0.00010712,2]
[348568103,1736622637607,-853.47,0.00010712,2]
[348568104,1736622637616,-725.73,0.00010712,2]
[348568105,1736622637625,-1166.39,0.00010712,2]
[348568106,1736622637635,-668.75,0.00010712,2]
[348568107,1736622637644,-1027.5,0.00010712,2]
[348568108,1736622637653,-1352.05,0.00010712,2]
[348568109,1736622637662,-4865.22,0.00010712,2]
[348568110,1736622637671,-1073.95,0.00010712,2]
[348568111,1736622637680,-441.08,0.00010712,2]
[348568112,1736622637689,-500.0,0.00010712,2]
[348568113,1736622637699,-1195.73,0.00010712,2]
[348568114,1736622637707,-500.0,0.00010712,2]
[348568115,1736622637717,-526.2,0.00010712,2]
[348568116,1736622637726,-835.76,0.00010712,2]
[348568117,1736622637736,-560.55,0.00010713,2]
[348568118,1736622637745,-999.57,0.00010713,2]
[348568119,1736622637754,-584.92,0.00010714,2]
[348568120,1736622637764,-1043.03,0.00010714,2]
[348568121,1736622637773,-770.4,0.00010714,2]
[348568122,1736622637782,-150.0,0.00010959,2]
[348568123,1736622637791,-500.0,0.0001096,2]
[348568124,1736622637800,-1700.0,0.0001096,2]
[348568125,1736622637811,-500.0,0.00010983,2]
[348568126,1736622637820,-1664.74,0.00010983,2]
[348568127,1736622637830,-500.0,0.00010983,2]
[348568128,1736622637839,-258.16,0.00010983,2]
[348568129,1736622637848,-500.0,0.00010983,2]
[348568130,1736622637858,-567.88,0.00010983,2]
[348568132,1736622637867,-725.09,0.00010983,2]
[348568134,1736622637876,-975.48,0.00010983,2]
[348568135,1736622637885,-606.77,0.00010983,2]
[348568136,1736622637895,-1171.79,0.00010983,2]
[348568137,1736622637904,-999.0,0.00010984,2]
[348568138,1736622637913,-500.0,0.00010984,2]
[348568139,1736622637922,-500.0,0.00010984,2]
[348568140,1736622637931,-500.0,0.00010984,2]
[348568141,1736622637940,-656.8,0.00010984,2]
[348568142,1736622637950,-500.0,0.00010984,2]
[348568143,1736622637959,-500.0,0.00010984,2]
[348568144,1736622637969,-500.0,0.00010984,2]
[348568145,1736622637978,-500.0,0.00010984,2]
[348568146,1736622637987,-500.0,0.00010984,2]
[348568147,1736622637997,-1763.45,0.00010984,2]
[348568148,1736622638007,-708.92,0.00010984,2]
[348568149,1736622638016,-1148.6,0.00010984,2]
[348568150,1736622638026,-3217.96,0.00010984,2]
[348568151,1736622638035,-573.26,0.00010984,2]
[348568152,1736622638045,-500.0,0.00010984,2]
[348568153,1736622638054,-632.97,0.00010984,2]
[348568154,1736622638068,-500.0,0.00010984,2]
[348568155,1736622638077,-1576.94,0.00010984,2]
[348568156,1736622638092,-500.0,0.00010984,2]
[348568157,1736622638101,-500.0,0.00010984,2]
[348568158,1736622638111,-1726.37,0.00010984,2]
[348568159,1736622638120,-587.7,0.00010984,2]
[348568160,1736622638130,-1288.78,0.00010984,2]
[348568161,1736622638139,-923.13,0.00010984,2]
[348568162,1736622638149,-2114.13,0.00010984,2]
[348568163,1736622638160,-864.56,0.00010984,2]
[348568164,1736622638169,-1229.55,0.00010984,2]
[348568165,1736622638178,-699.21,0.00010984,2]
[348568166,1736622638187,-500.0,0.00010984,2]
[348568167,1736622638197,-1521.94,0.00010984,2]
[348568168,1736622638206,-1300.42,0.00010984,2]
[348568169,1736622638215,-578.02,0.00010984,2]
[348568170,1736622638224,-565.77,0.00010984,2]
[348568171,1736622638233,-565.77,0.00010984,2]
[348568172,1736622638242,-500.0,0.00010984,2]
[348568173,1736622638251,-733.68,0.00010984,2]
[348568174,1736622638260,-500.0,0.00010984,2]
[348568175,1736622638269,-500.0,0.00010984,2]
[348568176,1736622638278,-500.0,0.00010984,2]
[348568177,1736622638287,-500.0,0.00010984,2]
[348568178,1736622638296,-888.33,0.00010984,2]
[348568179,1736622638307,-500.0,0.00010984,2]
[348568180,1736622638316,-688.5,0.00010984,2]
[348568181,1736622638325,-1370.57,0.00010984,2]
[348568182,1736622638334,-638.55,0.00010984,2]
[348568183,1736622638343,-1565.18,0.00010984,2]
[348568184,1736622638352,-500.0,0.00010984,2]
[348568185,1736622638361,-500.0,0.00010985,2]
[348568186,1736622638370,-500.0,0.00010985,2]
[348568187,1736622638379,-500.0,0.00010985,2]
[348568188,1736622638388,-500.0,0.00010985,2]
[348568189,1736622638397,-500.0,0.00010985,2]
[348568190,1736622638406,-500.0,0.00010985,2]
[348568191,1736622638415,-500.0,0.00010985,2]
[348568192,1736622638423,-500.0,0.00010985,2]
[348568193,1736622638432,-500.0,0.00010985,2]
[348568194,1736622638442,-500.0,0.00010985,2]